fUST/lending_fUST_20240208
["ID","MTS","AMOUNT","RATE_DAILY","PERIOD"]
[313411875,1707326950378,-166.666666,0.00021918,2]
[313411876,1707326950398,-1772.28211707,0.00022,2]
[313411877,1707326956113,-2208.34306827,0.00022,2]
[313411878,1707326956135,-349.3617305,0.00022479,5]
[313411879,1707326958144,-416.85406174,0.00022479,5]
[313411880,1707326958165,-979.94865421,0.00022479,2]
[313411881,1707326958185,-169.096112,0.00023077,2]
[313411882,1707326958206,-200.0,0.00023192,7]
[313411883,1707326958227,-495.05930133,0.00024228,5]
[313411884,1707326958247,-178.08854988,0.00024877,2]
[313411885,1707326958269,-16278.03562284,0.00024969,2]
[313411886,1707326958289,-978.5,0.00024969,3]
[313411887,1707326958310,-295.61602706,0.00024977,2]
[313411888,1707326958329,-718.01783563,0.00024977,2]
[313411889,1707326958464,-155.01860223,0.00024977,2]
[313411890,1707326958490,-4300.3,0.00024977,2]
[313411891,1707326958509,-155.27339162,0.00024977,2]
[313411892,1707326958529,-370.69449192,0.00024977,2]
[313411893,1707326958549,-464.59107891,0.00024978,2]
[313411894,1707326958569,-2409.80917706,0.00024978,2]
[313411895,1707326958588,-2178.57025064,0.00024978,2]
[313411896,1707326958607,-1200.31274669,0.00024978,2]
[313411897,1707326958626,-1758.51529448,0.00024978,2]
[313411898,1707326958645,-1312.29474077,0.00024978,2]
[313411899,1707326958665,-591.99312524,0.00024978,2]
[313411900,1707326958684,-287.87736975,0.00024978,2]
[313411901,1707326958704,-1858.30574077,0.00024978,2]
[313411902,1707326958726,-307.31318331,0.00024979,2]
[313411903,1707326958745,-330.23570657,0.00024979,2]
[313411904,1707326958766,-37034.1990655,0.00024979,2]
[313411905,1707326958786,-904.27081356,0.00024979,2]
[313411906,1707326958805,-3912.90656797,0.00024979,2]
[313411907,1707326958824,-5838.13733152,0.00024979,2]
[313411908,1707326958843,-373.40151051,0.00024979,2]
[313411909,1707326958862,-500.0,0.00024979,2]
[313411910,1707326958881,-600.21558173,0.00024979,2]
[313411911,1707326958900,-500.0,0.00024979,2]
[313411912,1707326958920,-500.0,0.00024979,2]
[313411913,1707326958939,-571.20254843,0.00024979,2]
[313411914,1707326958959,-548.12177174,0.00024979,2]
[313411915,1707326958979,-22851.204593,0.0002498,2]
[313411916,1707326958998,-11546.98714516,0.0002498,2]
[313411917,1707326963108,-155.07747611,0.00024979,2]
[313411918,1707326963128,-11304.21744784,0.0002498,2]
[313411919,1707326963148,-22851.204593,0.0002498,2]
[313411920,1707326963166,-14157.31291407,0.0002498,2]
[313411921,1707326964718,-154.93802479,0.00024978,2]
[313411922,1707326964741,-154.93802479,0.00024979,2]
[313411923,1707326964762,-1866.18673893,0.0002498,2]
[313411924,1707326964783,-708.102277,0.0002498,2]
[313411925,1707326964805,-335.52992191,0.00025,2]
[313411926,1707326964828,-6299.4069347,0.00025,2]
[313411927,1707326964853,-4510.48976989,0.00025432,2]
[313411928,1707326964876,-1619.00699056,0.00025441,2]
[313411929,1707326964899,-246.9472786,0.00025511,7]
[313411930,1707326972088,-2147.71655655,0.00024977,2]
[313412077,1707327037948,-154.93802479,0.00024975,4]
[313412079,1707327037957,-9967.3761107,0.00024976,2]
[313412081,1707327037967,-17855.25694789,0.00024977,2]
[313412083,1707327037976,-244.5304457,0.00024977,2]
[313412085,1707327037985,-195.44394166,0.00024979,2]
[313412087,1707327037995,-2905.350639,0.00025446,2]
[313412089,1707327038005,-170.29285902,0.0002551,2]
[313412091,1707327038014,-33.0527214,0.00025511,7]
[313412093,1707327038024,-3974.26717652,0.00026999,2]
[313412095,1707327038035,-155.0294556,0.00027,2]
[313412097,1707327038044,-1382.39428642,0.00027386,2]
[313412099,1707327038053,-2864.14,0.00027387,3]
[313412101,1707327038064,-2386.78,0.00027387,3]
[313412103,1707327038073,-1988.98,0.00027387,3]
[313412105,1707327038082,-155.53176464,0.00027395,2]
[313412106,1707327038091,-298.74120165,0.00027395,2]
[313412107,1707327038101,-1201.19414152,0.00027395,2]
[313412109,1707327038110,-3835.60463265,0.00027395,2]
[313412110,1707327038119,-180.7763201,0.00027395,2]
[313412112,1707327038129,-1664.30491925,0.00027395,2]
[313412114,1707327038138,-335.26553475,0.00027395,2]
[313412116,1707327038147,-201.78710056,0.00027395,2]
[313412118,1707327038157,-206.45491755,0.00027395,2]
[313412119,1707327038167,-2267.06724154,0.00027396,2]
[313412121,1707327038176,-500.0,0.00027397,3]
[313412122,1707327038185,-460.61215802,0.00027397,3]
[313412124,1707327038194,-500.0,0.00027397,2]
[313412125,1707327038203,-500.0,0.00027397,2]
[313412126,1707327038213,-500.0,0.00027397,3]
[313412127,1707327038222,-383.84406897,0.00027397,3]
[313412128,1707327038232,-500.0,0.00027397,3]
[313412129,1707327038241,-995.49,0.00027397,3]
[313412130,1707327038250,-554.27336056,0.00027397,3]
[313412131,1707327038261,-548.60961144,0.00027397,3]
[313412132,1707327038272,-500.0,0.00027397,3]
[313412133,1707327038285,-3604.7,0.00027397,3]
[313412134,1707327038295,-500.0,0.00027397,3]
[313412135,1707327038304,-618.17,0.00027397,3]
[313412136,1707327038314,-4410.62,0.00027397,3]
[313412137,1707327038324,-1001.16,0.00027397,3]
[313412138,1707327038334,-500.0,0.00027397,3]
[313412139,1707327038343,-1071.64,0.00027397,3]
[313412140,1707327038352,-500.0,0.00027397,3]
[313412141,1707327038362,-1393.52,0.00027397,3]
[313412142,1707327038373,-506.39,0.00027397,3]
[313412143,1707327038382,-500.0,0.00027397,3]
[313412144,1707327038391,-500.0,0.00027397,3]
[313412145,1707327038400,-2158.11,0.00027397,3]
[313412146,1707327038409,-1857.57,0.00027397,3]
[313412147,1707327038419,-500.0,0.00027397,3]
[313412148,1707327038428,-1096.52,0.00027397,3]
[313412149,1707327038438,-5436.93,0.00027397,3]
[313412150,1707327038449,-500.0,0.00027397,3]
[313412151,1707327038458,-917.3,0.00027397,3]
[313412152,1707327038468,-500.0,0.00027397,3]
[313412153,1707327038478,-500.0,0.00027397,3]
[313412154,1707327038487,-500.0,0.00027397,3]
[313412155,1707327038496,-1188.61,0.00027397,3]
[313412156,1707327038505,-500.0,0.00027397,3]
[313412157,1707327038514,-500.0,0.00027397,3]
[313412158,1707327038524,-500.0,0.00027397,3]
[313412159,1707327038535,-500.0,0.00027397,3]
[313412160,1707327038544,-500.0,0.00027397,3]
[313412161,1707327038553,-1219.12,0.00027397,3]
[313412162,1707327038563,-500.0,0.00027397,3]
[313412163,1707327038572,-2324.05,0.00027397,3]
[313412164,1707327038581,-500.0,0.00027397,3]
[313412165,1707327038590,-500.0,0.00027671,3]
[313412166,1707327038599,-500.0,0.00027671,2]
[313412167,1707327038608,-500.0,0.00027671,2]
[313412168,1707327038618,-500.0,0.00027671,3]
[313412169,1707327038627,-500.0,0.00027671,3]
[313412170,1707327038636,-995.49,0.00027671,3]
[313412171,1707327038645,-3604.7,0.00027671,3]
[313412172,1707327038654,-500.0,0.00027671,3]
[313412173,1707327038663,-618.17,0.00027671,3]
[313412174,1707327038673,-4410.62,0.00027671,3]
[313412175,1707327038682,-1001.16,0.00027671,3]
[313412176,1707327038691,-500.0,0.00027671,3]
[313412177,1707327038700,-1071.64,0.00027671,3]
[313412178,1707327038709,-1393.52,0.00027671,3]
[313412179,1707327038718,-506.39,0.00027671,3]
[313412180,1707327038727,-500.0,0.00027671,3]
[313412181,1707327038736,-500.0,0.00027671,3]
[313412182,1707327038746,-2158.11,0.00027671,3]
[313412183,1707327038756,-1857.57,0.00027671,3]
[313412184,1707327038765,-500.0,0.00027671,3]
[313412185,1707327038774,-1096.52,0.00027671,3]
[313412186,1707327038784,-5436.93,0.00027671,3]
[313412187,1707327038794,-500.0,0.00027671,3]
[313412188,1707327038803,-917.3,0.00027671,3]
[313412189,1707327038812,-500.0,0.00027671,3]
[313412190,1707327038822,-500.0,0.00027671,3]
[313412191,1707327038831,-500.0,0.00027671,3]
[313412192,1707327038841,-1188.61,0.00027671,3]
[313412193,1707327038850,-500.0,0.00027671,3]
[313412194,1707327038859,-500.0,0.00027671,3]
[313412195,1707327038869,-500.0,0.00027671,3]
[313412196,1707327038878,-1219.12,0.00027671,3]
[313412197,1707327038887,-500.0,0.00027671,3]
[313412198,1707327038896,-2324.05,0.00027671,3]
[313412199,1707327038905,-500.0,0.00027671,3]
[313412200,1707327038914,-128681.58675101,0.00027845,2]
[313412201,1707327038923,-160.24638953,0.00027945,2]
[313412202,1707327038932,-516.62351105,0.00027945,5]
[313412203,1707327038942,-213.50403566,0.00027945,2]
[313412204,1707327038951,-3252.21461977,0.00027945,2]
[313412205,1707327038961,-1829.96950121,0.00027945,2]
[313412206,1707327038970,-500.0,0.00027945,3]
[313412207,1707327038980,-995.49,0.00027945,3]
[313412208,1707327038989,-3604.7,0.00027945,3]
[313412209,1707327038998,-500.0,0.00027945,3]
[313412210,1707327039007,-618.17,0.00027945,3]
[313412211,1707327039016,-4410.62,0.00027945,3]
[313412212,1707327039026,-1001.16,0.00027945,3]
[313412213,1707327039037,-500.0,0.00027945,3]
[313412214,1707327039046,-1071.64,0.00027945,3]
[313412215,1707327039056,-1393.52,0.00027945,3]
[313412216,1707327039065,-506.39,0.00027945,3]
[313412217,1707327039074,-500.0,0.00027945,3]
[313412218,1707327039083,-500.0,0.00027945,3]
[313412219,1707327039092,-2158.11,0.00027945,3]
[313412220,1707327039101,-1857.57,0.00027945,3]
[313412221,1707327039111,-500.0,0.00027945,3]
[313412222,1707327039121,-1096.52,0.00027945,3]
[313412223,1707327039131,-5436.93,0.00027945,3]
[313412224,1707327039141,-500.0,0.00027945,3]
[313412225,1707327039150,-917.3,0.00027945,3]
[313412226,1707327039159,-500.0,0.00027945,3]
[313412227,1707327039168,-500.0,0.00027945,3]
[313412228,1707327039178,-500.0,0.00027945,3]
[313412229,1707327039187,-1188.61,0.00027945,3]
[313412230,1707327039196,-500.0,0.00027945,3]
[313412231,1707327039205,-500.0,0.00027945,3]
[313412232,1707327039214,-500.0,0.00027945,3]
[313412233,1707327039224,-1219.12,0.00027945,3]
[313412234,1707327039233,-500.0,0.00027945,3]
[313412235,1707327039242,-2324.05,0.00027945,3]
[313412236,1707327039251,-500.0,0.00027945,3]
[313412237,1707327039261,-1716.49476713,0.00028,2]
[313412238,1707327039270,-51930.88733907,0.00028,2]
[313412239,1707327039281,-391.0,0.00028062,15]
[313412240,1707327039290,-337.0,0.00028101,2]
[313412241,1707327039301,-500.0,0.00028219,3]
[313412242,1707327039310,-995.49,0.00028219,3]
[313412243,1707327039320,-3604.7,0.00028219,3]
[313412244,1707327039330,-618.17,0.00028219,3]
[313412245,1707327039339,-4410.62,0.00028219,3]
[313412246,1707327039348,-1001.16,0.00028219,3]
[313412247,1707327039358,-500.0,0.00028219,3]
[313412248,1707327039367,-1071.64,0.00028219,3]
[313412249,1707327039377,-1393.52,0.00028219,3]
[313412250,1707327039386,-506.39,0.00028219,3]
[313412251,1707327039395,-500.0,0.00028219,3]
[313412252,1707327039405,-500.0,0.00028219,3]
[313412253,1707327039414,-2158.11,0.00028219,3]
[313412254,1707327039423,-1857.57,0.00028219,3]
[313412255,1707327039433,-500.0,0.00028219,3]
[313412256,1707327039442,-1096.52,0.00028219,3]
[313412257,1707327039451,-5436.93,0.00028219,3]
[313412258,1707327039460,-500.0,0.00028219,3]
[313412259,1707327039470,-917.3,0.00028219,3]
[313412260,1707327039479,-500.0,0.00028219,3]
[313412261,1707327039488,-500.0,0.00028219,3]
[313412262,1707327039498,-500.0,0.00028219,3]
[313412263,1707327039507,-1188.61,0.00028219,3]
[313412264,1707327039515,-500.0,0.00028219,3]
[313412265,1707327039525,-500.0,0.00028219,3]
[313412266,1707327039534,-500.0,0.00028219,3]
[313412267,1707327039631,-1219.12,0.00028219,3]
[313412268,1707327039640,-500.0,0.00028219,3]
[313412269,1707327039649,-2324.05,0.00028219,3]
[313412270,1707327039658,-500.0,0.00028219,3]
[313412271,1707327039667,-154.98112191,0.0002824,2]
[313412272,1707327039676,-500.0,0.00028493,3]
[313412273,1707327039685,-995.49,0.00028493,3]
[313412274,1707327039694,-3604.7,0.00028493,3]
[313412275,1707327039703,-618.17,0.00028493,3]
[313412276,1707327039712,-4410.62,0.00028493,3]
[313412277,1707327039721,-1001.16,0.00028493,3]
[313412278,1707327039730,-500.0,0.00028493,3]
[313412279,1707327039740,-1071.64,0.00028493,3]
[313412280,1707327039749,-1393.52,0.00028493,3]
[313412281,1707327039758,-506.39,0.00028493,3]
[313412282,1707327039767,-500.0,0.00028493,3]
[313412283,1707327039776,-500.0,0.00028493,3]
[313412284,1707327039787,-2158.11,0.00028493,3]
[313412285,1707327039796,-1857.57,0.00028493,3]
[313412286,1707327039805,-500.0,0.00028493,3]
[313412287,1707327039814,-1096.52,0.00028493,3]
[313412288,1707327039824,-5436.93,0.00028493,3]
[313412289,1707327039833,-500.0,0.00028493,3]
[313412290,1707327039842,-917.3,0.00028493,3]
[313412291,1707327039851,-500.0,0.00028493,3]
[313412292,1707327039860,-500.0,0.00028493,3]
[313412293,1707327039870,-500.0,0.00028493,3]
[313412294,1707327039879,-1188.61,0.00028493,3]
[313412296,1707327039888,-500.0,0.00028493,3]
[313412297,1707327039897,-500.0,0.00028493,3]
[313412299,1707327039906,-500.0,0.00028493,3]
[313412301,1707327039915,-1219.12,0.00028493,3]
[313412302,1707327039925,-500.0,0.00028493,3]
[313412303,1707327039934,-2324.05,0.00028493,3]
[313412304,1707327039942,-500.0,0.00028493,3]
[313412305,1707327039951,-486.9162774,0.00028767,3]
[313412306,1707327039960,-995.49,0.00028767,3]
[313412307,1707327039969,-3604.7,0.00028767,3]
[313412308,1707327039978,-618.17,0.00028767,3]
[313412309,1707327039987,-4410.62,0.00028767,3]
[313412310,1707327039997,-1001.16,0.00028767,3]
[313412311,1707327040006,-500.0,0.00028767,3]
[313412312,1707327040015,-1071.64,0.00028767,3]
[313412313,1707327040025,-1393.52,0.00028767,3]
[313412314,1707327040037,-506.39,0.00028767,3]
[313412315,1707327040046,-500.0,0.00028767,3]
[313412316,1707327040056,-500.0,0.00028767,3]
[313412317,1707327040065,-2158.11,0.00028767,3]
[313412318,1707327040074,-1857.57,0.00028767,3]
[313412319,1707327040083,-500.0,0.00028767,3]
[313412320,1707327040092,-1096.52,0.00028767,3]
[313412321,1707327040102,-5436.93,0.00028767,3]
[313412322,1707327040111,-500.0,0.00028767,3]
[313412323,1707327040120,-917.3,0.00028767,3]
[313412324,1707327040129,-500.0,0.00028767,3]
[313412325,1707327040139,-500.0,0.00028767,3]
[313412326,1707327040148,-1188.61,0.00028767,3]
[313412328,1707327040157,-500.0,0.00028767,3]
[313412329,1707327040166,-500.0,0.00028767,3]
[313412331,1707327040175,-500.0,0.00028767,3]
[313412333,1707327040185,-1219.12,0.00028767,3]
[313412334,1707327040194,-500.0,0.00028767,3]
[313412335,1707327040203,-2324.05,0.00028767,3]
[313412336,1707327040213,-375.36,0.00028767,3]
[313412337,1707327040222,-623.69645253,0.000289,2]
[313412338,1707327040231,-155.04961588,0.00029,2]
[313412339,1707327040240,-459.60686937,0.00029,3]
[313412340,1707327040249,-183.31759979,0.00029,10]
[313412341,1707327040258,-1030.20576942,0.00029,2]
[313412342,1707327040268,-6389.43521703,0.00029,2]
[313412343,1707327040367,-8610.56478297,0.00029,2]
[313412344,1707327040377,-873.60642443,0.00029,4]
[313412345,1707327040386,-1777.0,0.00029,4]
[313412346,1707327040395,-995.49,0.00029041,3]
[313412347,1707327040404,-3604.7,0.00029041,3]
[313412348,1707327040413,-618.17,0.00029041,3]
[313412349,1707327040424,-4410.62,0.00029041,3]
[313412350,1707327040433,-1001.16,0.00029041,3]
[313412351,1707327040442,-626.79334658,0.00029041,3]
[313412352,1707327040451,-1071.64,0.00029041,3]
[313412353,1707327040461,-1393.52,0.00029041,3]
[313412354,1707327040471,-506.39,0.00029041,3]
[313412355,1707327040480,-500.0,0.00029041,3]
[313412356,1707327040490,-500.0,0.00029041,3]
[313412357,1707327040499,-2158.11,0.00029041,3]
[313412358,1707327040508,-1857.57,0.00029041,3]
[313412359,1707327040518,-235.14194261,0.00029041,3]
[313412360,1707327040527,-1096.52,0.00029041,3]
[313412361,1707327040538,-5436.93,0.00029041,3]
[313412362,1707327040547,-500.0,0.00029041,3]
[313412363,1707327040556,-917.3,0.00029041,3]
[313412364,1707327040565,-500.0,0.00029041,3]
[313412365,1707327040574,-221.25860115,0.00029041,3]
[313412366,1707327040583,-1188.61,0.00029041,3]
[313412367,1707327040592,-409.72,0.00029041,3]
[313412368,1707327040601,-500.0,0.00029041,3]
[313412369,1707327040610,-500.0,0.00029041,3]
[313412370,1707327040620,-1219.12,0.00029041,3]
[313412371,1707327040629,-500.0,0.00029041,3]
[313412372,1707327040638,-2324.05,0.00029041,3]
[313412373,1707327040648,-995.49,0.00029315,3]
[313412374,1707327040657,-3604.7,0.00029315,3]
[313412375,1707327040666,-618.17,0.00029315,3]
[313412376,1707327040676,-4410.62,0.00029315,3]
[313412377,1707327040685,-1001.16,0.00029315,3]
[313412378,1707327040695,-1071.64,0.00029315,3]
[313412379,1707327040704,-1393.52,0.00029315,3]
[313412380,1707327040714,-506.39,0.00029315,3]
[313412381,1707327040723,-500.0,0.00029315,3]
[313412382,1707327040732,-500.0,0.00029315,3]
[313412383,1707327040741,-2158.11,0.00029315,3]
[313412384,1707327040751,-1857.57,0.00029315,3]
[313412385,1707327040760,-1096.52,0.00029315,3]
[313412386,1707327040770,-5436.93,0.00029315,3]
[313412387,1707327040779,-500.0,0.00029315,3]
[313412388,1707327040794,-917.3,0.00029315,3]
[313412389,1707327040805,-500.0,0.00029315,3]
[313412391,1707327040815,-1188.61,0.00029315,3]
[313412393,1707327040825,-500.0,0.00029315,3]
[313412394,1707327040835,-220.54274814,0.00029315,3]
[313412395,1707327040846,-1219.12,0.00029315,3]
[313412396,1707327040855,-500.0,0.00029315,3]
[313412397,1707327040866,-2324.05,0.00029315,3]
[313412398,1707327040876,-199.9099361,0.00029315,2]
[313412399,1707327040886,-153.0,0.00029315,2]
[313412400,1707327040895,-199.9099361,0.00029315,2]
[313412401,1707327040905,-153.0,0.00029315,2]
[313412402,1707327040915,-199.9099361,0.00029315,2]
[313412403,1707327040924,-199.9099361,0.00029315,2]
[313412404,1707327040933,-153.0,0.00029315,2]
[313412405,1707327040943,-199.9099361,0.00029315,2]
[313412406,1707327040952,-199.9099361,0.00029315,2]
[313412407,1707327040961,-153.0,0.00029315,2]
[313412408,1707327040971,-199.9099361,0.00029315,2]
[313412409,1707327040981,-151.0,0.00029324,2]
[313412410,1707327040991,-584.23388064,0.00029588,2]
[313412411,1707327041000,-500.0,0.00029588,2]
[313412412,1707327041009,-500.0,0.00029588,2]
[313412413,1707327041019,-629.56475482,0.00029588,2]
[313412414,1707327041028,-216.05537939,0.00029588,2]
[313412415,1707327041041,-378.18313122,0.00029588,2]
[313412416,1707327041050,-461.49620151,0.00029588,2]
[313412417,1707327041059,-232.45984872,0.00029588,2]
[313412418,1707327041068,-500.0,0.00029588,2]
[313412419,1707327041077,-500.0,0.00029588,2]
[313412420,1707327041086,-500.0,0.00029588,2]
[313412421,1707327041096,-500.0,0.00029588,2]
[313412422,1707327041105,-995.49,0.00029589,3]
[313412423,1707327041114,-3604.7,0.00029589,3]
[313412424,1707327041123,-618.17,0.00029589,3]
[313412425,1707327041133,-4410.62,0.00029589,3]
[313412426,1707327041142,-1001.16,0.00029589,3]
[313412427,1707327041151,-1071.64,0.00029589,3]
[313412428,1707327041161,-1393.52,0.00029589,3]
[313412429,1707327041170,-506.39,0.00029589,3]
[313412430,1707327041179,-500.0,0.00029589,3]
[313412431,1707327041189,-500.0,0.00029589,3]
[313412432,1707327041197,-2158.11,0.00029589,3]
[313412433,1707327041204,-1857.57,0.00029589,3]
[313412434,1707327041212,-1096.52,0.00029589,3]
[313412435,1707327041221,-5436.93,0.00029589,3]
[313412436,1707327041230,-500.0,0.00029589,3]
[313412437,1707327041239,-917.3,0.00029589,3]
[313412438,1707327041249,-414.57257262,0.00029589,3]
[313412439,1707327041258,-1188.61,0.00029589,3]
[313412440,1707327041267,-500.0,0.00029589,3]
[313412441,1707327041278,-1219.12,0.00029589,3]
[313412442,1707327041293,-500.0,0.00029589,3]
[313412443,1707327041302,-2324.05,0.00029589,3]
[313412444,1707327041311,-995.49,0.00029863,3]
[313412446,1707327041320,-3604.7,0.00029863,3]
[313412447,1707327041330,-618.17,0.00029863,3]
[313412448,1707327041341,-4410.62,0.00029863,3]
[313412450,1707327041351,-1001.16,0.00029863,3]
[313412452,1707327041360,-1071.64,0.00029863,3]
[313412453,1707327041370,-1393.52,0.00029863,3]
[313412455,1707327041380,-506.39,0.00029863,3]
[313412457,1707327041389,-500.0,0.00029863,3]
[313412459,1707327041399,-2158.11,0.00029863,3]
[313412460,1707327041409,-1857.57,0.00029863,3]
[313412462,1707327041418,-1096.52,0.00029863,3]
[313412464,1707327041427,-5436.93,0.00029863,3]
[313412465,1707327041436,-500.0,0.00029863,3]
[313412467,1707327041445,-917.3,0.00029863,3]
[313412469,1707327041457,-1188.61,0.00029863,3]
[313412470,1707327041466,-500.0,0.00029863,3]
[313412471,1707327041476,-1219.12,0.00029863,3]
[313412472,1707327041485,-500.0,0.00029863,3]
[313412473,1707327041494,-2324.05,0.00029863,3]
[313412474,1707327041503,-4775.67873401,0.0003,2]
[313412475,1707327041512,-349.80791941,0.0003,4]
[313412476,1707327041521,-154.95351395,0.0003,4]
[313412477,1707327041533,-158.37639189,0.0003,4]
[313412479,1707327041543,-2986.5693328,0.0003,4]
[313412481,1707327041553,-201.30941131,0.0003,4]
[313412483,1707327041562,-503.98514352,0.0003,14]
[313412484,1707327041572,-1182.87652198,0.0003,4]
[313412485,1707327041582,-210.06181,0.0003,12]
[313412486,1707327041592,-151.96814681,0.0003,4]
[313412487,1707327041602,-256.0,0.0003,2]
[313412488,1707327041698,-22941.69976358,0.00030037,3]
[313412489,1707327041712,-3927.07422765,0.00030037,3]
[313412490,1707327041721,-995.49,0.00030136,3]
[313412491,1707327041731,-3604.7,0.00030136,3]
[313412492,1707327041741,-618.17,0.00030136,3]
[313412493,1707327041750,-4410.62,0.00030136,3]
[313412494,1707327041760,-1001.16,0.00030136,3]
[313412495,1707327041769,-1071.64,0.00030136,3]
[313412496,1707327041779,-1393.52,0.00030136,3]
[313412497,1707327041794,-506.39,0.00030136,3]
[313412498,1707327041804,-500.0,0.00030136,3]
[313412499,1707327041814,-2158.11,0.00030136,3]
[313412500,1707327041823,-1857.57,0.00030136,3]
[313412501,1707327041833,-1096.52,0.00030136,3]
[313412502,1707327041842,-5436.93,0.00030136,3]
[313412503,1707327041852,-500.0,0.00030136,3]
[313412504,1707327041862,-917.3,0.00030136,3]
[313412505,1707327041871,-220.0,0.00030136,2]
[313412506,1707327041880,-220.0,0.00030136,2]
[313412507,1707327041889,-220.0,0.00030136,2]
[313412508,1707327041899,-220.0,0.00030136,2]
[313412509,1707327041909,-182.55463605,0.00030136,2]
[313412510,1707327041918,-1188.61,0.00030136,3]
[313412511,1707327041927,-500.0,0.00030136,3]
[313412512,1707327041936,-606.73699445,0.00030136,3]
[313412513,1707327042065,-155.01550155,0.00027395,2]
[313412514,1707327042075,-500.0,0.00027397,3]
[313412515,1707327042084,-500.0,0.00027671,3]
[313412516,1707327042093,-500.0,0.00027945,3]
[313412517,1707327042103,-500.0,0.00028219,3]
[313412518,1707327042124,-500.0,0.00028493,3]
[313412519,1707327042137,-500.0,0.00028767,3]
[313412520,1707327042148,-500.0,0.00029041,3]
[313412521,1707327042159,-500.0,0.00029315,3]
[313412522,1707327042171,-500.0,0.00029589,3]
[313412523,1707327042182,-612.38300555,0.00030136,3]
[313412524,1707327042193,-254.18833566,0.00030136,3]
[313412525,1707327042203,-2324.05,0.00030136,3]
[313412526,1707327042214,-153.0,0.00030137,2]
[313412527,1707327042224,-365.433075,0.00030137,2]
[313412528,1707327042235,-196.9360571,0.00030137,2]
[313412529,1707327042246,-153.0,0.00030137,2]
[313412530,1707327042256,-153.0,0.00030137,2]
[313412531,1707327042267,-199.9099361,0.00030137,2]
[313412532,1707327042276,-153.0,0.00030137,2]
[313412533,1707327042294,-199.9099361,0.00030137,2]
[313412534,1707327042304,-153.0,0.00030137,2]
[313412535,1707327042314,-153.0,0.00030137,2]
[313412537,1707327042325,-199.9099361,0.00030137,2]
[313412538,1707327042334,-199.9099361,0.00030137,2]
[313412539,1707327042344,-199.9099361,0.00030137,2]
[313412540,1707327042353,-199.9099361,0.00030137,2]
[313412541,1707327042363,-199.9099361,0.00030137,2]
[313412542,1707327042373,-199.9099361,0.00030137,2]
[313412544,1707327042384,-199.9099361,0.00030137,2]
[313412545,1707327042393,-153.0,0.00030137,2]
[313412546,1707327042403,-153.0,0.00030137,2]
[313412547,1707327042413,-153.0,0.00030137,2]
[313412548,1707327042423,-153.0,0.00030137,2]
[313412550,1707327042433,-153.0,0.00030137,2]
[313412553,1707327042443,-17837.78244598,0.00030247,7]
[313412612,1707327042929,-465.7143465,0.00029853,3]
[313412614,1707327042941,-575.0,0.00029853,3]
[313412616,1707327042953,-616.7756535,0.00029853,3]
[313412618,1707327042963,-500.0,0.00029863,3]
[313412619,1707327042973,-500.0,0.00030136,3]
[313412621,1707327042983,-2893.07137361,0.00030247,7]
[313412622,1707327042994,-1598.30126522,0.00030247,7]
[313412623,1707327043012,-1219.20949503,0.00030247,7]
[313412625,1707327043023,-4542.5,0.00030247,7]
[313412627,1707327043036,-3684.13006804,0.00030247,7]
[313412681,1707327046006,-199.9099361,0.00029315,2]
[313412682,1707327046016,-18225.00535212,0.00030247,7]
[313412684,1707327046026,-183.82053132,0.00030314,2]
[313412685,1707327046038,-620.00165494,0.00030349,2]